fUSD/lending_fUSD_20240708
["ID","MTS","AMOUNT","RATE_DAILY","PERIOD"]
[331523868,1720446970430,-500.0,0.0005041,120]
[331523869,1720446970463,-301.39,0.0005041,120]
[331523870,1720446970494,-500.0,0.0005041,120]
[331523871,1720446970526,-898.38,0.0005041,120]
[331523872,1720446970558,-500.0,0.0005041,120]
[331523873,1720446970591,-500.0,0.0005041,120]
[331523874,1720446970622,-500.0,0.0005041,120]
[331523875,1720446970656,-500.0,0.0005041,120]
[331523876,1720446970694,-501.8114376,0.0005041,120]
[331523877,1720446970728,-500.0,0.0005041,120]
[331523878,1720446970765,-500.0,0.0005041,120]
[331523879,1720446970798,-632.74,0.0005041,120]
[331523880,1720446970830,-680.16,0.0005041,120]
[331523881,1720446970862,-500.0,0.0005041,120]
[331523882,1720446970892,-500.0,0.0005041,120]
[331523883,1720446970925,-289.82501416,0.0005041,120]
[331523884,1720446971006,-500.0,0.0005041,120]
[331523885,1720446971038,-500.0,0.0005041,120]
[331523886,1720446971069,-500.0,0.0005041,120]
[331523887,1720446971099,-500.0,0.0005041,120]
[331523888,1720446971131,-4098.94,0.0005041,120]
[331523889,1720446971168,-577.18,0.0005041,120]
[331523890,1720446971199,-500.0,0.0005041,120]
[331523891,1720446971233,-500.0,0.0005041,120]
[331523892,1720446971265,-500.0,0.0005041,120]
[331523893,1720446971296,-721.29,0.0005041,120]
[331523894,1720446971327,-500.0,0.0005041,120]
[331523895,1720446971356,-500.0,0.0005041,120]
[331523896,1720446971384,-503.23074421,0.0005041,120]
[331523897,1720446971414,-500.0,0.00050684,120]
[331523898,1720446971447,-500.0,0.00050684,120]
[331523899,1720446971476,-500.0,0.00050684,120]
[331523900,1720446971506,-688.5795624,0.00050684,30]
[331523901,1720446971535,-500.0,0.00050684,120]
[331523902,1720446971566,-500.0,0.00050684,120]
[331523903,1720446971597,-500.0,0.00050684,120]
[331523904,1720446971628,-1534.21,0.00050684,120]
[331523905,1720446971659,-654.79,0.00050684,120]
[331523906,1720446971691,-607.69318348,0.00050684,120]
[331523907,1720446971722,-644.98,0.00050684,120]
[331523908,1720446971752,-500.0,0.00050684,120]
[331523909,1720446971783,-500.0,0.00050684,120]
[331523910,1720446971813,-1159.59,0.00050684,120]
[331523911,1720446971844,-500.0,0.00050684,120]
[331523912,1720446971875,-500.0,0.00050684,120]
[331523913,1720446971907,-500.0,0.00050684,120]
[331523914,1720446971937,-500.0,0.00050684,120]
[331523915,1720446971968,-500.0,0.00050684,120]
[331523916,1720446971999,-978.67,0.00050684,120]
[331523917,1720446972029,-500.0,0.00050684,120]
[331523918,1720446972059,-539.7,0.00050684,120]
[331523919,1720446972089,-500.0,0.00050684,120]
[331523920,1720446972118,-696.38,0.00050684,120]
[331523921,1720446972148,-534.94,0.00050684,120]
[331523922,1720446972191,-500.0,0.00050684,120]
[331523923,1720446972224,-500.0,0.00050684,120]
[331523924,1720446972256,-500.0,0.00050684,120]
[331523925,1720446972290,-500.0,0.00050684,120]
[331523926,1720446972323,-500.0,0.00050684,120]
[331523927,1720446972355,-675.45,0.00050684,120]
[331523928,1720446972387,-500.0,0.00050684,120]
[331523929,1720446972420,-500.0,0.00050684,120]
[331523930,1720446972451,-500.0,0.00050684,120]
[331523931,1720446972485,-500.0,0.00050684,120]
[331523932,1720446972516,-500.0,0.00050684,120]
[331523933,1720446972546,-500.0,0.00050684,120]
[331523934,1720446972578,-646.16,0.00050684,120]
[331523935,1720446972611,-500.0,0.00050684,120]
[331523936,1720446972645,-1063.67,0.00050684,120]
[331523937,1720446972680,-500.0,0.00050684,120]
[331523938,1720446972711,-500.0,0.00050684,120]
[331523939,1720446972954,-500.0,0.00050684,120]
[331523940,1720446972988,-500.0,0.00050684,120]
[331523941,1720446973020,-500.0,0.00050684,120]
[331523942,1720446973052,-633.65,0.00050684,120]
[331523943,1720446973084,-500.0,0.00050684,120]
[331523944,1720446973116,-500.0,0.00050684,120]
[331523945,1720446973147,-3360.3,0.00050684,120]
[331523946,1720446973184,-500.0,0.00050684,120]
[331523947,1720446973221,-500.0,0.00050684,120]
[331523948,1720446973253,-1179.1,0.00050684,120]
[331523949,1720446973287,-500.0,0.00050684,120]
[331523950,1720446973319,-973.05,0.00050684,120]
[331523951,1720446973349,-521.01,0.00050684,120]
[331523952,1720446973378,-506.3,0.00050684,120]
[331523953,1720446973411,-500.0,0.00050684,120]
[331523954,1720446973445,-500.0,0.00050684,120]
[331523955,1720446973478,-898.38,0.00050684,120]
[331523956,1720446973510,-500.0,0.00050684,120]
[331523957,1720446973544,-500.0,0.00050684,120]
[331523958,1720446973576,-500.0,0.00050684,120]
[331523959,1720446973607,-500.0,0.00050684,120]
[331523960,1720446973641,-500.0,0.00050684,120]
[331523961,1720446973675,-500.0,0.00050684,120]
[331523962,1720446973708,-632.74,0.00050684,120]
[331523963,1720446973741,-680.16,0.00050684,120]
[331523964,1720446973773,-500.0,0.00050684,120]
[331523965,1720446973806,-500.0,0.00050684,120]
[331523966,1720446973838,-500.0,0.00050684,120]
[331523967,1720446973868,-500.0,0.00050684,120]
[331523968,1720446973899,-500.0,0.00050684,120]
[331523969,1720446973943,-500.0,0.00050684,120]
[331523970,1720446973974,-4098.94,0.00050684,120]
[331523971,1720446974004,-577.18,0.00050684,120]
[331523972,1720446974036,-500.0,0.00050684,120]
[331523973,1720446974067,-500.0,0.00050684,120]
[331523974,1720446974099,-500.0,0.00050684,120]
[331523975,1720446974130,-721.29,0.00050684,120]
[331523976,1720446974166,-500.0,0.00050684,120]
[331523977,1720446974201,-500.0,0.00050684,120]
[331523978,1720446974234,-1001.84,0.0005084,48]
[331523979,1720446974270,-407.6,0.00050958,120]
[331523980,1720446974303,-500.0,0.00050958,120]
[331523981,1720446974336,-500.0,0.00050958,120]
[331523982,1720446974368,-500.0,0.00050958,120]
[331523983,1720446974401,-500.0,0.00050958,120]
[331523984,1720446974435,-500.0,0.00050958,120]
[331523985,1720446974468,-1534.21,0.00050958,120]
[331523986,1720446974501,-654.79,0.00050958,120]
[331523987,1720446974534,-644.98,0.00050958,120]
[331523988,1720446974565,-621.98804831,0.00050958,120]
[331523989,1720446974596,-500.0,0.00050958,120]
[331523990,1720446974730,-1159.59,0.00050958,120]
[331523991,1720446974764,-449.27,0.00050958,120]
[331523992,1720446974795,-500.0,0.00050958,120]
[331523993,1720446974828,-500.0,0.00050958,120]
[331523994,1720446974860,-500.0,0.00050958,120]
[331523995,1720446974892,-586.92282917,0.00050958,120]
[331523996,1720446974926,-978.67,0.00050958,120]
[331523997,1720446974959,-500.0,0.00050958,120]
[331523998,1720446974993,-539.7,0.00050958,120]
[331523999,1720446975026,-500.0,0.00050958,120]
[331524000,1720446975058,-696.38,0.00050958,120]
[331524001,1720446975091,-534.94,0.00050958,120]
[331524002,1720446975123,-500.0,0.00050958,120]
[331524003,1720446975154,-500.0,0.00050958,120]
[331524004,1720446975192,-500.0,0.00050958,120]
[331524005,1720446975225,-500.0,0.00050958,120]
[331524006,1720446975257,-500.0,0.00050958,120]
[331524007,1720446975292,-675.45,0.00050958,120]
[331524008,1720446975326,-500.0,0.00050958,120]
[331524009,1720446975360,-552.07917272,0.00050958,120]
[331524010,1720446975395,-500.0,0.00050958,120]
[331524011,1720446975430,-500.0,0.00050958,120]
[331524012,1720446975464,-500.0,0.00050958,120]
[331524013,1720446975498,-500.0,0.00050958,120]
[331524014,1720446975532,-646.16,0.00050958,120]
[331524015,1720446975566,-500.0,0.00050958,120]
[331524016,1720446975598,-1063.67,0.00050958,120]
[331524017,1720446975631,-500.0,0.00050958,120]
[331524018,1720446975663,-500.0,0.00050958,120]
[331524019,1720446975696,-237.70042095,0.00050958,120]
[331524020,1720446975727,-500.0,0.00050958,120]
[331524021,1720446975758,-500.0,0.00050958,120]
[331524022,1720446975789,-633.65,0.00050958,120]
[331524023,1720446975820,-500.0,0.00050958,120]
[331524024,1720446975852,-330.26544178,0.00050958,120]
[331524025,1720446975884,-3360.3,0.00050958,120]
[331524026,1720446975916,-500.0,0.00050958,120]
[331524027,1720446975949,-500.0,0.00050958,120]
[331524028,1720446975980,-1179.1,0.00050958,120]
[331524029,1720446976012,-500.0,0.00050958,120]
[331524030,1720446976043,-973.05,0.00050958,120]
[331524031,1720446976073,-521.01,0.00050958,120]
[331524032,1720446976103,-506.3,0.00050958,120]
[331524033,1720446976134,-500.0,0.00050958,120]
[331524034,1720446976168,-500.0,0.00050958,120]
[331524035,1720446976206,-898.38,0.00050958,120]
[331524036,1720446976237,-500.0,0.00050958,120]
[331524037,1720446976270,-500.0,0.00050958,120]
[331524038,1720446976303,-500.0,0.00050958,120]
[331524039,1720446976334,-500.0,0.00050958,120]
[331524040,1720446976364,-500.0,0.00050958,120]
[331524041,1720446976393,-400.4224956,0.00050958,120]
[331524042,1720446976424,-632.74,0.00050958,120]
[331524043,1720446976456,-680.16,0.00050958,120]
[331524044,1720446976487,-500.0,0.00050958,120]
[331524045,1720446976518,-500.0,0.00050958,120]
[331524046,1720446976550,-500.0,0.00050958,120]
[331524047,1720446976582,-500.0,0.00050958,120]
[331524048,1720446976615,-500.0,0.00050958,120]
[331524049,1720446976648,-500.0,0.00050958,120]
[331524050,1720446976681,-4098.94,0.00050958,120]
[331524051,1720446976713,-577.18,0.00050958,120]
[331524052,1720446976744,-178.3837702,0.00050958,120]
[331524053,1720446976775,-500.0,0.00050958,120]
[331524054,1720446976805,-500.0,0.00050958,120]
[331524055,1720446976835,-721.29,0.00050958,120]
[331524056,1720446976864,-500.0,0.00050958,120]
[331524057,1720446976895,-500.0,0.00050958,120]
[331524058,1720446976927,-500.0,0.00051232,120]
[331524059,1720446976958,-500.0,0.00051232,120]
[331524060,1720446976990,-500.0,0.00051232,120]
[331524061,1720446977021,-500.0,0.00051232,120]
[331524062,1720446977054,-500.0,0.00051232,120]
[331524063,1720446977085,-1534.21,0.00051232,120]
[331524064,1720446977116,-654.79,0.00051232,120]
[331524065,1720446977147,-644.98,0.00051232,120]
[331524066,1720446977181,-500.0,0.00051232,120]
[331524067,1720446977215,-1159.59,0.00051232,120]
[331524068,1720446977250,-500.0,0.00051232,120]
[331524069,1720446977283,-500.0,0.00051232,120]
[331524070,1720446977316,-500.0,0.00051232,120]
[331524071,1720446977349,-978.67,0.00051232,120]
[331524072,1720446977382,-500.0,0.00051232,120]
[331524073,1720446977414,-539.7,0.00051232,120]
[331524074,1720446977669,-196.12684459,0.00051232,120]
[331524075,1720446977706,-696.38,0.00051232,120]
[331524076,1720446977738,-534.94,0.00051232,120]
[331524077,1720446977771,-500.0,0.00051232,120]
[331524078,1720446977803,-500.0,0.00051232,120]
[331524079,1720446977835,-500.0,0.00051232,120]
[331524080,1720446977867,-500.0,0.00051232,120]
[331524081,1720446977898,-500.0,0.00051232,120]
[331524082,1720446977930,-675.45,0.00051232,120]
[331524083,1720446977963,-500.0,0.00051232,120]
[331524084,1720446977996,-500.0,0.00051232,120]
[331524085,1720446978029,-500.0,0.00051232,120]
[331524086,1720446978061,-500.0,0.00051232,120]
[331524087,1720446978093,-500.0,0.00051232,120]
[331524088,1720446978125,-646.16,0.00051232,120]
[331524089,1720446978157,-500.0,0.00051232,120]
[331524090,1720446978199,-1063.67,0.00051232,120]
[331524091,1720446978230,-500.0,0.00051232,120]
[331524092,1720446978264,-500.0,0.00051232,120]
[331524093,1720446978295,-524.64,0.00051232,120]
[331524094,1720446978327,-500.0,0.00051232,120]
[331524095,1720446978358,-500.0,0.00051232,120]
[331524096,1720446978389,-633.65,0.00051232,120]
[331524097,1720446978429,-3360.3,0.00051232,120]
[331524098,1720446978463,-500.0,0.00051232,120]
[331524099,1720446978496,-500.0,0.00051232,120]
[331524100,1720446978530,-1179.1,0.00051232,120]
[331524101,1720446978563,-500.0,0.00051232,120]
[331524102,1720446978596,-973.05,0.00051232,120]
[331524103,1720446978630,-521.01,0.00051232,120]
[331524104,1720446978663,-506.3,0.00051232,120]
[331524105,1720446978698,-500.0,0.00051232,120]
[331524106,1720446978730,-500.0,0.00051232,120]
[331524107,1720446978763,-898.38,0.00051232,120]
[331524108,1720446978796,-500.0,0.00051232,120]
[331524109,1720446978829,-500.0,0.00051232,120]
[331524110,1720446978862,-500.0,0.00051232,120]
[331524111,1720446978894,-529.69612033,0.00051232,120]
[331524112,1720446978928,-500.0,0.00051232,120]
[331524113,1720446978962,-632.74,0.00051232,120]
[331524114,1720446978994,-680.16,0.00051232,120]
[331524115,1720446979029,-500.0,0.00051232,120]
[331524116,1720446979062,-500.0,0.00051232,120]
[331524117,1720446979094,-500.0,0.00051232,120]
[331524118,1720446979127,-500.0,0.00051232,120]
[331524119,1720446979162,-500.0,0.00051232,120]
[331524120,1720446979202,-500.0,0.00051232,120]
[331524121,1720446979238,-4098.94,0.00051232,120]
[331524122,1720446979274,-577.18,0.00051232,120]
[331524123,1720446979308,-500.0,0.00051232,120]
[331524124,1720446979340,-500.0,0.00051232,120]
[331524125,1720446979376,-721.29,0.00051232,120]
[331524126,1720446979412,-500.0,0.00051232,120]
[331524127,1720446979450,-500.0,0.00051232,120]
[331524128,1720446979485,-174.09526473,0.00051506,120]
[331524129,1720446979520,-500.0,0.00051506,120]
[331524130,1720446979555,-500.0,0.00051506,120]
[331524131,1720446979588,-500.0,0.00051506,120]
[331524132,1720446979620,-242.95,0.00051506,120]
[331524133,1720446979654,-1534.21,0.00051506,120]
[331524134,1720446979686,-654.79,0.00051506,120]
[331524135,1720446979719,-644.98,0.00051506,120]
[331524136,1720446979752,-500.0,0.00051506,120]
[331524137,1720446979787,-1159.59,0.00051506,120]
[331524138,1720446979823,-500.0,0.00051506,120]
[331524139,1720446979857,-500.0,0.00051506,120]
[331524140,1720446979892,-495.3,0.00051506,120]
[331524141,1720446979931,-978.67,0.00051506,120]
[331524142,1720446979967,-500.0,0.00051506,120]
[331524143,1720446980000,-539.7,0.00051506,120]
[331524144,1720446980090,-696.38,0.00051506,120]
[331524145,1720446980123,-534.94,0.00051506,120]
[331524146,1720446980157,-500.0,0.00051506,120]
[331524147,1720446980197,-500.0,0.00051506,120]
[331524148,1720446980228,-500.0,0.00051506,120]
[331524149,1720446980261,-500.0,0.00051506,120]
[331524150,1720446980293,-500.0,0.00051506,120]
[331524151,1720446980324,-675.45,0.00051506,120]
[331524152,1720446980356,-500.0,0.00051506,120]
[331524153,1720446980387,-500.0,0.00051506,120]
[331524154,1720446980416,-500.0,0.00051506,120]
[331524155,1720446980450,-504.26792544,0.00051506,120]
[331524156,1720446980481,-500.0,0.00051506,120]
[331524157,1720446980513,-646.16,0.00051506,120]
[331524158,1720446980546,-500.0,0.00051506,120]
[331524159,1720446980578,-1063.67,0.00051506,120]
[331524160,1720446980609,-500.0,0.00051506,120]
[331524161,1720446980642,-500.0,0.00051506,120]
[331524162,1720446980675,-377.1,0.00051506,120]
[331524163,1720446980706,-500.0,0.00051506,120]
[331524164,1720446980738,-633.65,0.00051506,120]
[331524165,1720446980769,-3360.3,0.00051506,120]
[331524166,1720446980799,-500.0,0.00051506,120]
[331524167,1720446980830,-500.0,0.00051506,120]
[331524168,1720446980860,-1179.1,0.00051506,120]
[331524169,1720446980889,-500.0,0.00051506,120]
[331524170,1720446980920,-973.05,0.00051506,120]
[331524171,1720446980953,-521.01,0.00051506,120]
[331524172,1720446980983,-506.3,0.00051506,120]
[331524173,1720446981014,-500.0,0.00051506,120]
[331524174,1720446981043,-500.0,0.00051506,120]
[331524175,1720446981073,-898.38,0.00051506,120]
[331524176,1720446981102,-500.0,0.00051506,120]
[331524177,1720446981131,-500.0,0.00051506,120]
[331524178,1720446981162,-500.0,0.00051506,120]
[331524179,1720446981200,-500.0,0.00051506,120]
[331524180,1720446981232,-632.74,0.00051506,120]
[331524181,1720446981267,-680.16,0.00051506,120]
[331524182,1720446981301,-500.0,0.00051506,120]
[331524183,1720446981331,-500.0,0.00051506,120]
[331524184,1720446981361,-500.0,0.00051506,120]
[331524185,1720446981391,-500.0,0.00051506,120]
[331524186,1720446981420,-502.56436462,0.00051506,120]
[331524187,1720446981453,-500.0,0.00051506,120]
[331524188,1720446981486,-4098.94,0.00051506,120]
[331524189,1720446981519,-577.18,0.00051506,120]
[331524190,1720446981551,-500.0,0.00051506,120]
[331524191,1720446981581,-500.0,0.00051506,120]
[331524192,1720446981613,-721.29,0.00051506,120]
[331524193,1720446981644,-500.0,0.00051506,120]
[331524194,1720446981679,-500.0,0.00051506,120]
[331524195,1720446981713,-500.0,0.0005178,120]
[331524196,1720446981746,-500.0,0.0005178,120]
[331524197,1720446981777,-1534.21,0.0005178,120]
[331524198,1720446981809,-654.79,0.0005178,120]
[331524199,1720446981841,-644.98,0.0005178,120]
[331524200,1720446981873,-500.0,0.0005178,120]
[331524201,1720446981904,-1159.59,0.0005178,120]
[331524202,1720446981934,-500.0,0.0005178,120]
[331524203,1720446981966,-500.0,0.0005178,120]
[331524204,1720446981996,-978.67,0.0005178,120]
[331524205,1720446982027,-500.0,0.0005178,120]
[331524206,1720446982058,-539.7,0.0005178,120]
[331524207,1720446982089,-696.38,0.0005178,120]
[331524208,1720446982123,-534.94,0.0005178,120]
[331524209,1720446982157,-500.0,0.0005178,120]
[331524210,1720446982199,-500.0,0.0005178,120]
[331524211,1720446982232,-500.0,0.0005178,120]
[331524212,1720446982268,-500.0,0.0005178,120]
[331524213,1720446982301,-398.67917233,0.0005178,120]
[331524214,1720446982333,-675.45,0.0005178,120]
[331524215,1720446982364,-500.0,0.0005178,120]
[331524216,1720446982395,-500.0,0.0005178,120]
[331524217,1720446982427,-500.0,0.0005178,120]
[331524218,1720446982458,-500.0,0.0005178,120]
[331524219,1720446982489,-646.16,0.0005178,120]
[331524220,1720446982520,-500.0,0.0005178,120]
[331524221,1720446982552,-1063.67,0.0005178,120]
[331524222,1720446982583,-500.0,0.0005178,120]
[331524223,1720446982615,-500.0,0.0005178,120]
[331524224,1720446982646,-500.0,0.0005178,120]
[331524225,1720446982680,-633.65,0.0005178,120]
[331524226,1720446982713,-3360.3,0.0005178,120]
[331524227,1720446982745,-500.0,0.0005178,120]
[331524228,1720446982775,-500.0,0.0005178,120]
[331524229,1720446982807,-1179.1,0.0005178,120]
[331524230,1720446982838,-500.0,0.0005178,120]
[331524231,1720446982869,-973.05,0.0005178,120]
[331524232,1720446982901,-521.01,0.0005178,120]
[331524233,1720446982934,-506.3,0.0005178,120]
[331524234,1720446982965,-597.03345413,0.0005178,120]
[331524235,1720446982997,-500.0,0.0005178,120]
[331524236,1720446983028,-898.38,0.0005178,120]
[331524237,1720446983059,-500.0,0.0005178,120]
[331524238,1720446983089,-500.0,0.0005178,120]
[331524239,1720446983119,-500.0,0.0005178,120]
[331524240,1720446983150,-500.0,0.0005178,120]
[331524241,1720446983184,-632.74,0.0005178,120]
[331524242,1720446983217,-680.16,0.0005178,120]
[331524243,1720446983250,-500.0,0.0005178,120]
[331524244,1720446983282,-500.0,0.0005178,120]
[331524245,1720446983314,-500.0,0.0005178,120]
[331524246,1720446983345,-500.0,0.0005178,120]
[331524247,1720446983379,-500.0,0.0005178,120]
[331524248,1720446983416,-4098.94,0.0005178,120]
[331524249,1720446983457,-577.18,0.0005178,120]
[331524250,1720446983605,-500.0,0.0005178,120]
[331524251,1720446983645,-500.0,0.0005178,120]
[331524252,1720446983690,-721.29,0.0005178,120]
[331524253,1720446983727,-500.0,0.0005178,120]
[331524254,1720446983764,-500.0,0.0005178,120]
[331524255,1720446983800,-2000.0,0.00051781,30]
[331524256,1720446983837,-151.0,0.00052,120]
[331524257,1720446983874,-999.44,0.00052,120]
[331524258,1720446983912,-500.0,0.00052027,120]
[331524259,1720446983949,-500.0,0.00052027,120]
[331524260,1720446983983,-500.0,0.00052027,120]
[331524261,1720446984018,-645.87588042,0.00052027,120]
[331524262,1720446984055,-500.0,0.00052054,120]
[331524263,1720446984091,-447.15559745,0.00052054,120]
[331524264,1720446984129,-1534.21,0.00052054,120]
[331524265,1720446984168,-654.79,0.00052054,120]
[331524266,1720446984214,-644.98,0.00052054,120]
[331524267,1720446984256,-363.04,0.00052054,120]
[331524268,1720446984295,-1159.59,0.00052054,120]
[331524269,1720446984331,-500.0,0.00052054,120]
[331524270,1720446984368,-500.0,0.00052054,120]
[331524271,1720446984403,-978.67,0.00052054,120]
[331524272,1720446984438,-500.0,0.00052054,120]
[331524273,1720446984475,-539.7,0.00052054,120]
[331524274,1720446984508,-534.94,0.00052054,120]
[331524275,1720446984541,-696.38,0.00052054,120]
[331524276,1720446984575,-500.0,0.00052054,120]
[331524277,1720446984610,-500.0,0.00052054,120]
[331524278,1720446984644,-500.0,0.00052054,120]
[331524279,1720446984682,-500.0,0.00052054,120]
[331524280,1720446984718,-675.45,0.00052054,120]
[331524281,1720446984753,-500.0,0.00052054,120]
[331524282,1720446984787,-688.5795624,0.00052054,30]
[331524283,1720446984821,-500.0,0.00052054,120]
[331524284,1720446984855,-500.0,0.00052054,120]
[331524285,1720446984886,-500.0,0.00052054,120]
[331524286,1720446984918,-646.16,0.00052054,120]
[331524287,1720446984956,-500.0,0.00052054,120]
[331524288,1720446984992,-1063.67,0.00052054,120]
[331524289,1720446985026,-500.0,0.00052054,120]
[331524290,1720446985061,-500.0,0.00052054,120]
[331524291,1720446985097,-633.65,0.00052054,120]
[331524292,1720446985132,-500.0,0.00052054,120]
[331524293,1720446985167,-3360.3,0.00052054,120]
[331524294,1720446985207,-500.0,0.00052054,120]
[331524295,1720446985240,-500.0,0.00052054,120]
[331524296,1720446985273,-1179.1,0.00052054,120]
[331524297,1720446985308,-500.0,0.00052054,120]
[331524298,1720446985343,-973.05,0.00052054,120]
[331524299,1720446985377,-521.01,0.00052054,120]
[331524300,1720446985412,-506.3,0.00052054,120]
[331524301,1720446985449,-500.0,0.00052054,120]
[331524302,1720446985483,-898.38,0.00052054,120]
[331524303,1720446985519,-500.0,0.00052054,120]
[331524304,1720446985552,-500.0,0.00052054,120]
[331524305,1720446985585,-500.0,0.00052054,120]
[331524306,1720446985618,-3501.0,0.00052054,120]
[331524307,1720446985651,-500.0,0.00052054,120]
[331524308,1720446985684,-632.74,0.00052054,120]
[331524309,1720446985718,-680.16,0.00052054,120]
[331524310,1720446985750,-500.0,0.00052054,120]
[331524311,1720446985782,-500.0,0.00052054,120]
[331524312,1720446985814,-577.94,0.00052054,120]
[331524313,1720446985847,-500.0,0.00052054,120]
[331524314,1720446985879,-500.0,0.00052054,120]
[331524315,1720446985912,-4098.94,0.00052054,120]
[331524316,1720446985947,-577.18,0.00052054,120]
[331524317,1720446985978,-500.0,0.00052054,120]
[331524318,1720446986009,-500.0,0.00052054,120]
[331524319,1720446986042,-721.29,0.00052054,120]
[331524320,1720446986074,-500.0,0.00052054,120]
[331524321,1720446986106,-1021.34,0.0005212,58]
[331524322,1720446986139,-500.0,0.00052328,120]
[331524323,1720446986172,-1534.21,0.00052328,120]
[331524324,1720446986209,-654.79,0.00052328,120]
[331524325,1720446986453,-644.98,0.00052328,120]
[331524326,1720446986490,-1159.59,0.00052328,120]
[331524327,1720446986526,-500.0,0.00052328,120]
[331524328,1720446986562,-500.0,0.00052328,120]
[331524329,1720446986595,-978.67,0.00052328,120]
[331524330,1720446986628,-500.0,0.00052328,120]
[331524331,1720446986662,-539.7,0.00052328,120]
[331524332,1720446986702,-696.38,0.00052328,120]
[331524333,1720446986736,-500.0,0.00052328,120]
[331524334,1720446986769,-534.94,0.00052328,120]
[331524335,1720446986804,-500.0,0.00052328,120]
[331524336,1720446986837,-500.0,0.00052328,120]
[331524337,1720446986870,-500.0,0.00052328,120]
[331524338,1720446986901,-675.45,0.00052328,120]
[331524339,1720446986935,-500.0,0.00052328,120]
[331524340,1720446986967,-500.0,0.00052328,120]
[331524341,1720446987000,-500.0,0.00052328,120]
[331524342,1720446987032,-500.0,0.00052328,120]
[331524343,1720446987064,-646.16,0.00052328,120]
[331524344,1720446987098,-500.0,0.00052328,120]
[331524345,1720446987131,-1063.67,0.00052328,120]
[331524346,1720446987169,-500.0,0.00052328,120]
[331524347,1720446987207,-633.65,0.00052328,120]
[331524348,1720446987245,-500.0,0.00052328,120]
[331524349,1720446987280,-3360.3,0.00052328,120]
[331524350,1720446987313,-500.0,0.00052328,120]
[331524351,1720446987346,-500.0,0.00052328,120]
[331524352,1720446987379,-1179.1,0.00052328,120]
[331524353,1720446987412,-500.0,0.00052328,120]
[331524354,1720446987448,-973.05,0.00052328,120]
[331524355,1720446987482,-521.01,0.00052328,120]
[331524356,1720446987516,-506.3,0.00052328,120]
[331524357,1720446987552,-500.0,0.00052328,120]
[331524358,1720446987587,-898.38,0.00052328,120]
[331524359,1720446987621,-506.09352232,0.00052328,120]
[331524360,1720446987656,-500.0,0.00052328,120]
[331524361,1720446987690,-500.0,0.00052328,120]
[331524362,1720446987723,-3501.0,0.00052328,120]
[331524363,1720446987756,-500.0,0.00052328,120]
[331524364,1720446987788,-632.74,0.00052328,120]
[331524365,1720446987820,-680.16,0.00052328,120]
[331524366,1720446987852,-500.0,0.00052328,120]
[331524367,1720446987885,-500.0,0.00052328,120]